bitfinex/quotes_SOLUSD_20250129
["timestamp","ask_amount","ask_price","bid_price","bid_amount"]
[1738185037041,0.0001,233.42,233.35,4.2853]
[1738185037225,0.0001,233.42,233.4,34.33821613]
[1738185037634,0.0001,233.42,233.41,24.027864]
[1738185037927,0.0001,233.42,233.41,25.027864]
[1738185038127,0.0001,233.42,233.41,24.027864]
[1738185038435,0.0001,233.42,233.41,336.027864]
[1738185038747,0.0001,233.42,233.41,0.25098]
[1738185038942,0.0001,233.42,233.41,25.153354]
[1738185039241,0.0001,233.42,233.41,29.437654]
[1738185040951,0.0001,233.42,233.41,31.18209364]
[1738185041138,0.0001,233.42,233.41,4.53528]
[1738185041332,0.0001,233.42,233.41,4.40979]
[1738185041640,0.0001,233.42,233.41,4.2843]
[1738185041825,0.0001,233.42,233.38,34.33821613]
[1738185042026,0.0001,233.42,233.41,0.25098]
[1738185042930,0.0001,233.42,233.34,34.33821613]
[1738185043140,0.12549,233.4,233.34,4.2854]
[1738185043344,0.12549,233.4,233.35,0.25098]
[1738185043945,0.0001,233.42,233.35,0.25098]
[1738185043946,0.0001,233.42,233.37,0.25098]
[1738185044957,0.0001,233.42,233.38,4.2848]
[1738185045155,0.0001,233.42,233.39,0.25098]
[1738185045455,0.0001,233.42,233.38,4.2848]
[1738185045657,0.12549,233.39,233.28,34.33821613]
[1738185045849,0.12549,233.37,233.28,38.62481613]
[1738185046044,0.12549,233.37,233.32,0.03]
[1738185046954,0.0001,233.42,233.37,4.285]
[1738185047154,0.0001,233.42,233.39,34.33821613]
[1738185047933,0.0001,233.42,233.41,34.58919613]
[1738185048536,0.0001,233.42,233.41,0.25098]
[1738185049494,0.0001,233.42,233.41,4.53528]
[1738185050769,0.0001,233.42,233.41,28.312164]
[1738185051773,0.0001,233.42,233.41,4.53528]
[1738185052138,0.0001,233.42,233.39,4.2845]
[1738185052364,0.0001,233.42,233.34,34.33821613]
[1738185052562,0.12549,233.41,233.33,4.2857]
[1738185052743,0.12549,233.39,233.32,34.36821613]
[1738185052944,0.12549,233.37,233.32,4.3158]
[1738185053145,0.12549,233.37,233.32,0.03]
[1738185053351,0.92907282,233.37,233.32,0.03]
[1738185053552,0.92903195,233.37,233.32,0.03]
[1738185053757,0.12549,233.35,233.32,0.03]
[1738185054477,0.12549,233.37,233.32,0.03]
[1738185054645,0.12549,233.37,233.32,38.65401613]
[1738185054850,34.33831613,233.42,233.32,38.65401613]
[1738185054851,0.12549,233.41,233.32,38.65401613]
[1738185055047,0.12549,233.41,233.36,34.33821613]
[1738185055247,0.12549,233.41,233.38,34.33821613]
[1738185055453,0.0001,233.42,233.38,34.33821613]
[1738185055653,0.0001,233.42,233.36,34.33821613]
[1738185055847,0.0001,233.42,233.34,34.33821613]
[1738185056072,34.33821613,233.39,233.32,4.3158]
[1738185056373,0.12549,233.4,233.32,38.65401613]
[1738185056750,0.0001,233.42,233.36,34.33821613]
[1738185056951,0.0001,233.42,233.4,34.33821613]
[1738185057252,0.0001,233.42,233.41,0.25098]
[1738185057451,0.0001,233.42,233.41,24.027864]
[1738185057653,0.0001,233.42,233.41,336.027864]
[1738185058379,0.063,233.52,233.49,0.25098]
[1738185058674,0.063,233.52,233.51,34.33821613]
[1738185058876,0.063,233.52,233.45,34.33821613]
[1738185059453,0.063,233.52,233.51,0.25098]
[1738185060572,0.18849,233.52,233.44,34.33821613]
[1738185060776,34.33821613,233.51,233.42,38.62211613]
[1738185061075,0.92852409,233.5,233.42,34.33821613]
[1738185061280,0.12549,233.48,233.4,34.33821613]
[1738185061452,0.25098,233.42,233.32,34.36821613]
[1738185061652,0.12549,233.4,233.32,34.36821613]
[1738185061858,0.12549,233.4,233.34,34.33821613]
[1738185062278,0.25098,233.38,233.32,0.03]
[1738185062453,0.12549,233.36,233.32,0.03]
[1738185062653,0.12549,233.36,233.32,34.36821613]
[1738185062862,35.14162827,233.48,233.35,0.25098]
[1738185063171,0.12549,233.47,233.4,34.33821613]
[1738185063371,0.92873656,233.47,233.4,34.33821613]
[1738185063560,0.92873656,233.47,233.38,34.33821613]
[1738185064264,34.46370613,233.5,233.41,0.25098]
[1738185064463,0.063,233.52,233.44,34.33821613]
[1738185064788,34.33821613,233.48,233.38,34.33821613]
[1738185065088,35.20443537,233.52,233.42,34.33821613]
[1738185065395,0.063,233.52,233.51,0.25098]
[1738185065595,0.063,233.52,233.35,1.0]
[1738185065894,0.063,233.52,233.42,1.0]
[1738185066056,0.063,233.52,233.47,24.027864]
[1738185066388,0.063,233.62,233.59,0.25098]
[1738185066586,0.0001,233.62,233.61,44.027864]
[1738185066756,0.0001,233.62,233.61,78.36608013]
[1738185067097,0.80225871,233.79,233.62,0.25098]
[1738185067252,34.33821613,233.78,233.69,34.33821613]
[1738185067458,34.33821613,233.8,233.69,34.33821613]
[1738185067672,0.25098,233.78,233.69,34.33821613]
[1738185067886,0.80221255,233.78,233.7,0.25098]
[1738185068068,0.80208457,233.78,233.71,34.33821613]
[1738185068253,34.33821613,233.8,233.71,34.33821613]
[1738185068458,1.05304778,233.79,233.71,34.33821613]
[1738185068754,0.80212982,233.83,233.75,34.33821613]
[1738185069063,34.40121613,233.84,233.75,34.33821613]
[1738185069064,35.20310868,233.84,233.75,34.33821613]
[1738185069259,0.063,233.84,233.77,34.33821613]
[1738185069668,0.12549,233.81,233.73,34.33821613]
[1738185070052,0.12549,233.81,233.74,0.25098]
[1738185070254,0.86499164,233.84,233.76,0.25098]
[1738185070255,34.40121613,233.84,233.76,0.25098]
[1738185070457,0.80192787,233.83,233.75,34.33821613]
[1738185070684,0.12549,233.77,233.7,34.33821613]
[1738185070986,34.33821613,233.82,233.72,34.33821613]
[1738185071198,0.80211681,233.82,233.68,1.0]
[1738185071490,0.063,233.84,233.8,1.0]
[1738185071779,0.063,233.84,233.83,21.25098]
[1738185071962,0.063,233.86,233.85,25.027864]
[1738185072164,0.063,233.92,233.89,24.027864]
[1738185072560,0.063,233.92,233.91,58.36608013]
[1738185073081,0.063,233.92,233.85,34.33821613]
[1738185073461,0.063,233.92,233.86,0.25098]
[1738185073662,0.12549,233.88,233.79,34.33821613]
[1738185073964,0.12549,233.88,233.69,2.5034]
[1738185073965,0.12549,233.84,233.77,34.33821613]
[1738185074293,0.12549,233.84,233.7,14.9763]
[1738185074294,35.20307255,233.92,233.83,0.25098]
[1738185074581,0.25098,233.89,233.8,34.33821613]
[1738185074769,0.12549,233.85,233.76,34.33821613]
[1738185075155,0.80188521,233.84,233.76,34.33821613]
[1738185075354,34.33821613,233.82,233.72,38.61671613]
[1738185075576,34.33821613,233.78,233.68,34.33821613]
[1738185075885,34.33821613,233.8,233.7,34.33821613]
[1738185076076,34.33821613,233.82,233.72,34.33821613]
[1738185076263,34.33821613,233.82,233.74,34.33821613]
[1738185076471,34.33821613,233.86,233.77,34.33821613]
[1738185076670,34.33821613,233.86,233.78,0.25098]
[1738185076985,34.33821613,233.86,233.77,34.33821613]
[1738185077179,34.46370613,233.84,233.73,34.33821613]
[1738185077484,34.46370613,233.82,233.73,34.33821613]
[1738185077980,0.12549,233.82,233.74,0.25098]
[1738185078194,34.33821613,233.84,233.75,34.33821613]
[1738185078370,34.33821613,233.82,233.74,0.25098]
[1738185078576,0.12549,233.79,233.71,34.33821613]
[1738185078875,0.12549,233.77,233.69,34.33821613]
[1738185079386,38.61511613,233.82,233.73,34.33821613]
[1738185079588,0.12549,233.8,233.73,34.33821613]
[1738185080671,0.12549,233.8,233.7,0.25098]
[1738185080672,0.12549,233.78,233.71,34.33821613]
[1738185080872,13.37241827,233.86,233.73,34.33821613]
[1738185080873,54.33821613,233.82,233.73,34.33821613]
[1738185081085,0.80215648,233.85,233.75,34.33821613]
[1738185081086,34.33821613,233.84,233.75,34.33821613]
[1738185081292,0.03,233.8,233.75,34.33821613]
[1738185081594,0.03,233.8,233.79,34.33821613]
[1738185081783,0.03,233.8,233.79,34.58919613]
[1738185082167,0.063,233.92,233.82,20.0]
[1738185082366,0.063,233.92,233.86,34.33821613]
[1738185082592,0.063,233.92,233.88,34.33821613]
[1738185082894,0.063,233.92,233.9,34.33821613]
[1738185083585,0.063,233.93,233.92,54.58919613]
[1738185083788,0.86415889,234.08,233.97,0.25098]
[1738185083988,0.063,234.08,234.02,34.33821613]
[1738185084193,0.86413813,234.08,234.02,34.33821613]
[1738185084491,0.063,234.08,234.02,34.33821613]
[1738185084868,0.063,234.08,234.02,38.61121613]
[1738185085275,0.063,234.08,234.02,34.33821613]
[1738185085476,0.18849,234.08,234.02,34.33821613]
[1738185085990,0.12549,234.02,233.94,34.33821613]
[1738185086194,34.33821613,234.01,233.92,34.33821613]
[1738185086372,34.33821613,234.03,233.92,34.33821613]
[1738185086575,0.12549,233.96,233.88,34.33821613]
[1738185086773,0.12549,233.94,233.84,34.33821613]
[1738185087098,0.12549,233.94,233.79,1.6525]
[1738185087099,0.12549,233.9,233.8,34.33821613]
[1738185087294,35.14002288,233.89,233.8,34.33821613]
[1738185087487,0.12549,233.88,233.78,34.33821613]
[1738185087674,0.12549,233.88,233.8,34.33821613]
[1738185087995,0.12549,233.86,233.76,34.33821613]
[1738185088192,35.14015065,233.85,233.74,38.61631613]
[1738185088494,1.0,233.91,233.78,34.33821613]
[1738185088495,34.33821613,233.87,233.78,34.33821613]
[1738185088796,34.33821613,233.85,233.76,34.33821613]
[1738185089098,0.12549,233.83,233.76,34.33821613]
[1738185089688,0.80197338,233.86,233.79,0.25098]
[1738185089889,0.80186816,233.86,233.8,34.33821613]
[1738185090194,0.12549,233.87,233.8,34.33821613]
[1738185090582,0.12549,233.85,233.78,34.33821613]
[1738185090774,0.12549,233.85,233.74,4.2782]
[1738185090977,0.12549,233.83,233.74,38.61641613]
[1738185091183,0.25098,233.83,233.76,34.33821613]
[1738185091387,0.80198917,233.82,233.72,38.61661613]
[1738185091590,0.12549,233.78,233.7,38.61701613]
[1738185092312,0.12549,233.78,233.72,34.33821613]
[1738185092678,0.12549,233.76,233.68,34.33821613]
[1738185092883,0.12549,233.76,233.7,0.063]
[1738185093391,0.80223159,233.78,233.7,34.40121613]
[1738185093594,35.14039082,233.83,233.74,34.33821613]
[1738185093913,0.80217469,233.83,233.74,38.61641613]
[1738185094521,0.25098,233.77,233.7,0.063]
[1738185094701,0.12549,233.73,233.7,0.063]
[1738185094998,0.9278368,233.73,233.7,0.063]
[1738185095893,0.12549,233.72,233.7,0.063]
[1738185096101,0.80243201,233.71,233.7,0.063]
[1738185096302,1.05341201,233.71,233.7,0.063]
[1738185096478,1.05341201,233.71,233.61,4.2806]
[1738185096479,0.25098,233.67,233.6,17.128906]
[1738185096682,34.33821613,233.63,233.55,4.2815]
[1738185096880,0.12549,233.64,233.55,4.2815]
[1738185097108,0.80266777,233.62,233.55,4.2815]
[1738185097503,0.12549,233.64,233.56,34.58919613]
[1738185097700,83.0,233.85,233.53,17.133875]
[1738185097701,0.03,233.86,233.85,1.0]
[1738185098011,1.0,233.91,233.76,1.0]
[1738185098185,0.63932636,233.93,233.84,1.0]
[1738185098385,0.63932636,233.93,233.82,1.0]
[1738185098577,0.63932636,233.93,233.84,1.0]
[1738185098784,2.6344,233.97,233.86,1.0]
[1738185098994,23.902374,233.95,233.84,1.0]
[1738185099204,0.12549,233.93,233.83,34.33821613]
[1738185099401,0.12549,233.9,233.83,34.33821613]
[1738185099811,0.12549,233.91,233.85,34.33821613]
[1738185100380,0.25098,233.89,233.79,34.33821613]
[1738185100688,24.027864,233.92,233.66,7.02902736]
[1738185100689,34.33821613,233.86,233.76,1.0]
[1738185101002,0.12549,233.85,233.8,1.0]
[1738185101205,1.63932636,233.91,233.82,1.0]
[1738185101419,20.0,233.89,233.82,1.0]
[1738185101702,20.63932636,233.89,233.82,1.0]
[1738185101903,0.63932636,233.94,233.87,34.33821613]
[1738185102201,34.33821613,233.98,233.89,34.33821613]
[1738185102418,0.63932636,233.98,233.92,1.0]
[1738185102705,0.63932636,233.98,233.91,34.33821613]
[1738185102888,0.12549,233.97,233.91,34.33821613]
[1738185103220,0.12549,233.97,233.93,34.33821613]
[1738185103407,0.63932636,234.01,233.95,34.33821613]
[1738185103591,0.63932636,234.03,233.97,35.33821613]
[1738185103784,0.63932636,234.05,233.97,35.33821613]
[1738185104011,0.12549,234.04,233.97,34.33821613]
[1738185104311,0.12549,233.98,233.92,1.0]
[1738185105023,0.25098,233.96,233.89,34.33821613]
[1738185105304,0.12549,233.96,233.93,34.33821613]
[1738185105611,0.12549,233.94,233.86,34.33821613]
[1738185105906,54.33821613,233.95,233.85,34.33821613]
[1738185105907,0.12549,233.92,233.85,34.33821613]
[1738185106122,0.12549,233.9,233.85,34.33821613]
[1738185106284,0.12549,233.9,233.84,0.25098]
[1738185106484,0.12549,233.9,233.83,34.33821613]
[1738185106785,0.12549,233.9,233.84,1.0]
[1738185106980,0.63932636,233.94,233.89,34.33821613]
[1738185107180,34.33821613,234.0,233.91,35.33821613]
[1738185107388,0.63932636,233.99,233.91,34.33821613]
[1738185107585,0.25098,233.98,233.89,35.33821613]
[1738185107882,0.12549,233.96,233.89,35.33821613]
[1738185108085,0.12549,233.96,233.9,0.6412295]
[1738185108283,0.12549,233.94,233.87,1.0]
[1738185108491,0.63932636,233.93,233.87,34.33821613]
[1738185108692,0.63932636,233.95,233.87,34.33821613]
[1738185108886,20.0,233.9,233.83,34.33821613]
[1738185109117,0.12549,233.83,233.78,0.063]
[1738185109289,0.12549,233.81,233.78,0.063]
[1738185109488,34.33821613,233.84,233.78,0.063]
[1738185109788,0.63932636,233.83,233.78,0.063]
[1738185110104,20.25098,233.83,233.78,0.063]
[1738185110289,20.63932636,233.82,233.78,0.063]
[1738185110686,5.99208093,233.89,233.82,1.0]
[1738185110994,0.63932636,233.92,233.85,35.33821613]
[1738185111191,4.91372636,233.95,233.87,35.33821613]
[1738185111391,0.12549,233.9,233.87,1.0]
[1738185111701,34.33821613,233.94,233.78,15.0342]
[1738185111702,0.03,234.1,234.05,1.0]
[1738185112006,34.33821613,234.09,234.01,1.0]
[1738185112797,0.12549,234.05,233.99,1.0]
[1738185113203,0.18849,234.08,233.99,1.0]
[1738185113506,0.18849,234.08,234.01,1.0]
[1738185113715,58.24059013,234.05,233.96,35.33821613]
[1738185114013,0.12549,233.97,233.91,1.0]
[1738185114214,34.46370613,233.97,233.89,1.0]
[1738185114421,34.46370613,233.97,233.91,1.0]
[1738185114791,34.46370613,233.97,233.88,35.33821613]
[1738185114991,34.46370613,233.97,233.89,1.0]
[1738185115211,0.12549,233.95,233.89,1.0]
[1738185115412,0.12549,233.95,233.92,1.0]
[1738185115799,23.776884,234.0,233.92,1.0]
[1738185116007,0.12549,233.96,233.92,1.0]
[1738185116512,20.12549,233.96,233.88,34.33821613]
[1738185116815,20.0,233.96,233.93,1.0]
[1738185116996,4.2732,234.02,233.93,1.0]
[1738185117200,4.2732,234.02,233.88,4.2755]
[1738185117201,38.61041613,234.07,233.98,34.33821613]
[1738185117408,34.33821613,234.07,233.99,1.0]
[1738185117825,0.12549,234.06,234.0,34.33821613]
[1738185118021,4.2719,234.09,234.03,1.0]
[1738185118022,20.0,234.09,234.03,1.0]
[1738185118312,20.0,234.09,234.01,1.0]
[1738185118313,0.12549,234.06,234.01,1.0]
[1738185118531,20.0,234.07,234.04,35.33821613]
[1738185118733,0.03,234.1,234.04,35.33821613]
[1738185118901,0.03,234.1,234.06,34.33821613]
[1738185119110,0.03,234.1,234.07,1.0]
[1738185119519,0.03,234.1,234.04,34.33821613]
[1738185120115,0.03,234.1,234.02,34.33821613]
[1738185120432,0.03,234.1,234.04,34.33821613]
[1738185120631,4.3017,234.1,234.04,34.33821613]
[1738185120793,20.0,234.09,234.02,34.33821613]
[1738185121001,20.0,234.03,233.95,1.0]
[1738185121195,20.0,234.03,233.89,0.64095506]
[1738185121196,0.12549,233.98,233.93,1.0]
[1738185121409,20.0,233.99,233.9,17.106206]
[1738185121410,0.12549,233.94,233.9,17.106206]
[1738185121619,34.33821613,234.01,233.91,34.33821613]
[1738185121801,34.33821613,233.97,233.9,17.106206]
[1738185122003,38.61311613,233.92,233.84,34.33821613]
[1738185122223,43.902374,233.88,233.82,1.0]
[1738185122410,0.12549,233.8,233.79,16.75694542]
[1738185122611,0.12549,233.8,233.77,1.0]
[1738185122809,20.0,233.81,233.77,1.0]
[1738185123004,20.0,233.89,233.78,34.33821613]
[1738185123234,4.2749,233.92,233.84,1.0]
[1738185123517,20.0,233.93,233.86,35.33821613]
[1738185124205,6.3322,234.07,233.96,1.0]
[1738185124552,0.063,234.08,233.96,1.0]
[1738185124553,0.063,234.08,234.06,34.33821613]
[1738185124712,0.063,234.08,234.07,1.0]
[1738185124897,0.063,234.08,234.07,1.89174072]
[1738185125098,0.063,234.08,234.07,1.76625072]
[1738185125506,0.063,234.08,234.07,1.89174072]
[1738185126206,0.063,234.08,234.07,30.06631472]
[1738185126405,0.0001,234.08,234.07,30.06631472]
[1738185126618,0.0001,234.08,234.07,6.16394072]
[1738185127319,34.33831613,234.08,234.01,1.64067347]
[1738185127507,0.12549,234.07,234.01,1.0]
[1738185127905,34.33821613,234.06,233.97,1.0]
[1738185128207,0.12549,234.05,233.98,1.0]
[1738185128418,0.12549,234.02,233.98,1.0]
[1738185128744,0.12549,234.02,233.96,35.33821613]
[1738185129529,34.33821613,234.06,233.96,35.33821613]
[1738185129704,0.12549,234.05,233.99,1.0]
[1738185129900,23.902374,234.05,233.99,1.0]
[1738185130123,20.0,234.04,233.99,1.0]
[1738185130304,0.0001,234.08,234.0,34.33821613]
[1738185130618,0.0001,234.08,234.02,1.0]
[1738185130922,0.0001,234.08,234.07,35.33821613]
[1738185131127,0.0001,234.08,234.07,35.58919613]
[1738185131323,0.0001,234.08,234.07,1.0]
[1738185131518,0.0001,234.08,234.07,35.97902068]
[1738185132113,0.0001,234.08,234.05,35.33821613]
[1738185132425,0.0001,234.08,234.07,35.46370613]
[1738185132626,0.0001,234.08,234.07,35.33821613]
[1738185132810,0.0001,234.08,234.07,34.33821613]
[1738185133007,0.0001,234.08,234.03,35.33821613]
[1738185133228,0.0001,234.08,234.04,1.0]
[1738185134233,0.0001,234.08,234.06,1.0]
[1738185134545,0.0001,234.08,234.07,34.46370613]
[1738185134912,0.0001,234.08,234.06,1.0]
[1738185135322,0.0001,234.08,234.04,1.0]
[1738185135516,0.0001,234.08,233.93,12.3274504]
[1738185135517,0.12549,234.05,234.0,1.0]
[1738185135735,20.0,234.0,233.94,1.0]
[1738185136018,0.12549,233.98,233.95,1.0]
[1738185136233,4.2734,234.01,233.95,1.0]
[1738185136416,34.46370613,234.0,233.93,1.0]
[1738185136623,20.12549,234.0,233.93,1.0]
[1738185136929,0.0001,234.08,234.04,1.0]
[1738185137134,0.0001,234.08,234.07,35.33821613]
[1738185137930,0.0001,234.08,234.07,35.58919613]
[1738185138326,0.0001,234.08,234.07,39.86139613]
[1738185138533,0.0001,234.08,234.07,35.46370613]
[1738185139232,0.0001,234.08,234.07,1.0]
[1738185139439,0.0001,234.08,234.03,1.0]
[1738185139731,0.0001,234.08,233.92,313.73744466]
[1738185139732,20.12549,234.01,233.95,1.0]
[1738185140039,0.12549,233.92,233.85,1.063]
[1738185140215,0.12549,233.92,233.87,1.0]
[1738185140413,0.12549,233.9,233.85,1.063]
[1738185140627,20.0,233.89,233.85,0.063]
[1738185140807,20.0,233.89,233.86,1.0]
[1738185141118,0.12549,233.87,233.85,0.063]
[1738185141311,34.46370613,233.86,233.85,0.063]
[1738185141843,58.24059013,233.86,233.85,0.063]
[1738185142011,34.46370613,233.86,233.85,0.063]
[1738185143233,58.24059013,233.86,233.85,0.063]
[1738185143738,34.46370613,233.86,233.85,0.063]
[1738185143941,35.46370613,233.86,233.85,0.063]
[1738185144142,0.12549,233.81,233.72,1.0]
[1738185144435,0.12549,233.75,233.72,1.0]
[1738185144809,38.61511613,233.82,233.78,1.0]
[1738185145025,34.33821613,233.86,233.8,1.0]
[1738185145218,34.33821613,233.86,233.73,0.64175815]
[1738185145219,34.33821613,233.84,233.78,1.0]
[1738185145525,0.12549,233.83,233.8,1.0]
[1738185145719,34.33821613,233.86,233.78,1.0]
[1738185146026,34.33821613,233.84,233.78,1.0]
[1738185146233,34.33821613,233.84,233.8,1.0]
[1738185146409,38.61441613,233.86,233.8,1.0]
[1738185146617,0.12549,233.85,233.82,1.0]
[1738185147020,20.0,233.83,233.82,1.0]
[1738185147221,0.12549,233.82,233.78,1.0]
[1738185147535,34.33821613,233.81,233.74,1.0]
[1738185147735,34.33821613,233.81,233.77,1.0]
[1738185147940,34.33821613,233.81,233.74,1.0]
[1738185148257,34.33821613,233.81,233.76,1.0]
[1738185148630,20.0,233.82,233.8,1.0]
[1738185148934,0.12549,233.81,233.79,1.0]
[1738185149325,0.12549,233.82,233.79,1.0]
[1738185149524,0.12549,233.8,233.75,1.0]
[1738185150731,34.33821613,233.85,233.79,1.0]
[1738185151037,20.0,233.84,233.81,1.0]
[1738185151423,0.12549,233.83,233.81,1.0]
[1738185151825,0.12549,233.83,233.79,1.0]
[1738185152122,0.12549,233.83,233.81,1.0]
[1738185152322,38.74030613,233.83,233.77,1.0]
[1738185152635,54.33821613,233.82,233.79,1.0]
[1738185152822,34.33821613,233.84,233.81,1.0]
[1738185153023,4.2763,233.85,233.81,1.0]
[1738185153547,0.12549,233.84,233.81,1.0]
[1738185153715,0.12549,233.84,233.79,1.063]
[1738185153914,34.46370613,233.8,233.79,0.063]
[1738185154137,58.24059013,233.8,233.79,0.063]
[1738185154734,0.12549,233.8,233.79,1.063]
[1738185155050,34.33821613,233.84,233.81,1.0]
[1738185155343,20.12549,233.82,233.81,1.0]
[1738185155519,20.12549,233.81,233.79,1.063]
[1738185155841,34.33821613,233.84,233.82,1.0]
[1738185156043,38.61461613,233.84,233.79,0.063]
[1738185156213,0.12549,233.83,233.79,0.063]
[1738185156419,34.33821613,233.82,233.79,0.063]
[1738185156615,34.46370613,233.8,233.79,0.063]
[1738185157847,58.24059013,233.8,233.79,0.063]
[1738185158021,62.51769013,233.8,233.79,0.063]
[1738185158217,38.74080613,233.8,233.79,0.063]
[1738185158942,62.51769013,233.8,233.79,0.0001]
[1738185159245,0.12549,233.71,233.68,0.063]
[1738185159438,34.46370613,233.69,233.68,0.063]
[1738185159645,34.46370613,233.69,233.68,1.063]
[1738185159847,34.33821613,233.71,233.7,1.0]
[1738185160041,34.33821613,233.73,233.7,1.0]
[1738185160343,0.12549,233.72,233.7,1.0]
[1738185160540,0.12549,233.72,233.68,0.063]
[1738185160541,54.33821613,233.77,233.74,1.0]
[1738185160843,0.12549,233.76,233.74,1.0]
[1738185161220,4.2773,233.79,233.68,0.70485121]
[1738185161221,34.33821613,233.79,233.77,1.0]
[1738185161546,38.61521613,233.81,233.77,1.0]
[1738185161845,0.12549,233.78,233.77,1.0]
[1738185162142,0.12549,233.75,233.73,1.0]
[1738185162661,0.12549,233.73,233.69,1.0]
[1738185162823,0.12549,233.71,233.69,1.0]
[1738185163649,38.61571613,233.78,233.74,1.0]
[1738185163828,0.12549,233.75,233.72,1.0]
[1738185164029,0.12549,233.75,233.74,1.0]
[1738185164441,0.12549,233.75,233.72,1.0]
[1738185164742,0.12549,233.73,233.72,1.0]
[1738185165045,34.33821613,233.74,233.68,0.063]
[1738185165046,0.12549,233.7,233.68,0.063]
[1738185165243,34.46370613,233.69,233.68,0.063]
[1738185165629,58.24059013,233.69,233.68,0.063]
[1738185166225,62.51969013,233.69,233.68,0.063]
[1738185166653,63.51969013,233.69,233.68,0.0001]
[1738185167149,63.77067013,233.69,233.68,0.0001]
[1738185167358,21.12549,233.65,233.61,0.063]
[1738185167531,21.12549,233.65,233.55,0.063]
[1738185167532,20.12549,233.58,233.55,0.063]
[1738185167727,0.12549,233.55,233.54,0.063]
[1738185168244,34.33821613,233.56,233.55,1.0]
[1738185168454,34.33821613,233.6,233.57,1.0]
[1738185168628,34.33821613,233.64,233.61,1.0]
[1738185169145,34.33821613,233.62,233.61,1.0]
[1738185169350,20.12549,233.62,233.61,1.0]
[1738185169568,0.12549,233.62,233.61,1.0]
[1738185169930,34.33821613,233.64,233.63,1.0]
[1738185170246,20.0,233.64,233.63,1.0]
[1738185170438,54.46370613,233.64,233.63,1.0]
[1738185171554,4.40569,233.63,233.57,1.0]
[1738185171858,0.12549,233.57,233.55,1.0]
[1738185173044,0.12549,233.55,233.54,0.063]
[1738185173633,0.12549,233.55,233.54,1.063]
[1738185174631,4.2815,233.57,233.56,1.0]
[1738185175157,0.12549,233.58,233.56,1.0]
[1738185175354,34.33821613,233.63,233.6,1.0]
[1738185175650,34.33821613,233.63,233.62,1.0]
[1738185175856,34.46370613,233.63,233.62,1.0]
[1738185176236,0.12549,233.63,233.62,1.0]
[1738185176735,34.33821613,233.65,233.64,1.0]
[1738185177146,0.12549,233.64,233.62,1.0]
[1738185178570,34.33821613,233.67,233.64,1.0]
[1738185178865,117.46370613,233.76,233.63,1.0]
[1738185178866,34.33821613,233.65,233.63,1.0]
[1738185179162,0.12549,233.64,233.61,1.0]
[1738185179467,34.33821613,233.67,233.65,1.0]
[1738185179671,34.33821613,233.67,233.58,0.76760683]
[1738185179672,34.33821613,233.73,233.7,1.0]
[1738185180037,34.33821613,233.73,233.72,1.0]
[1738185180262,0.03,233.85,233.8,1.0]
[1738185180263,34.33821613,233.83,233.8,1.0]
[1738185180556,38.61521613,233.81,233.74,1.0]
[1738185180746,38.61521613,233.81,233.69,1.0]
[1738185180747,0.12549,233.74,233.69,1.0]
[1738185181072,20.0,233.68,233.66,1.0]
[1738185181360,20.0,233.68,233.59,4.2808]
[1738185181361,34.33821613,233.69,233.68,1.0]
[1738185181575,34.33821613,233.76,233.75,1.0]
[1738185181743,34.33821613,233.84,233.81,1.0]
[1738185181942,0.03,233.85,233.83,1.0]
[1738185182167,34.33821613,233.84,233.82,1.0]
[1738185182364,20.0,233.83,233.8,1.0]
[1738185182775,20.0,233.83,233.82,1.0]
[1738185183063,0.03,233.85,233.82,1.0]